[Event "71st Greek Championship 2022"]
[Site "Athens"]
[Date "2022.12.03"]
[Round "1.5"]
[White "Alexakis, Dimitris"]
[Black "Koutlas, Nikolaos"]
[Result "1-0"]
[ECO "B53"]
[WhiteElo "2486"]
[BlackElo "2267"]
[Annotator "TA"]
[PlyCount "117"]
[EventDate "2022.12.04"]
[EventType "tourn"]
[EventCountry "GRE"]
[SourceTitle "playchess.com"]
[Source "ChessBase"]
[SourceQuality "1"]
[TimeControl "40/5400+30:1800+30"]

{[%evp 9,117,5,20,-2,-8,-37,0,0,2,-12,13,25,29,23,31,12,63,56,68,60,96,95,100,100,102,97,103,76,72,71,94,79,169,105,255,129,128,109,139,50,121,116,166,60,65,60,62,60,68,60,65,60,68,62,62,50,78,54,177,81,81,87,92,21,99,99,99,99,99,99,100,100,100,100,100,100,130,130,275,275,275,268,236,210,210,202,717,235,717,716,712,686,5919,5909,5576,4634,29965,29966,29967,29968,29967,29968,29968,29969,29968,29969,29968,29967,6986,5125]} 1. e4 {[%emt 0:00:03]} c5 {[%emt 0:00:05]} 2. Nf3 {[%emt 0:00:06]} d6 {[%emt 0:00:04]} 3. d4 {[%emt 0:00:17]} cxd4 {[%emt 0:00:07]} 4. Qxd4 {[%emt 0:00:04]} Nc6 {[%emt 0:00:25]} 5. Qe3 {[%emt 0:00:17]} g6 {[%emt 0:00:49]} 6. c4 {[%emt 0:00:51] B53: Sicilian: 2...d6: Lines with Qxd4.} Bg7 {[%emt 0:00:54]} 7. Be2 {[%emt 0:01:04]} Nf6 {[%emt 0:02:15]} (7... Qb6 $5 {[%cal Rb6e3]}) 8. O-O {[%emt 0:00:46] The position is equal.} O-O {[%emt 0:03:19]} 9. h3 {[%emt 0:09:08]} Nb4 {[%emt 0:05:55]} 10. Qd2 {[%emt 0:03:17] Against Nc2. e5 is the strong threat.} a5 {[%emt 0:01:18]} 11. Nc3 {[%emt 0:00:44] [#]} Be6 $146 {[%emt 0:04:37]} ({Predecessor:} 11... b6 12. Re1 Bb7 13. Bf1 Rc8 14. Rb1 Nd7 15. a3 Nc6 16. b3 Nc5 17. Qc2 Ne5 18. Nxe5 Bxe5 {1-0 (36) Sjugirov,S (2663)-Kabanov,N (2450) Khanty-Mansiysk 2018}) 12. Nd4 {[%emt 0:11:55]} Bd7 {[%emt 0:06:02]} ({Black should try} 12... Nd7 $11) 13. Rb1 $14 {[%emt 0:09:26]} Qb6 {[%emt 0:12:51][%cal Ob4a2] And now ...Nxa2! would win.} 14. Rd1 {[%emt 0:02:22]} Rac8 {[%emt 0:01:47]} 15. b3 {[%emt 0:20:26]} Rfd8 {[%emt 0:09:04]} 16. a3 {[%emt 0:10:23][%cal Ba2a3,Ba3a4,Ba4b5][%mdl 32]} Nc6 {[%emt 0:05:22]} 17. Ndb5 {[%emt 0:04:17]} Na7 {[%emt 0:03:22]} 18. a4 {[%emt 0:02:25]} Nxb5 {[%emt 0:13:54]} 19. axb5 {[%emt 0:00:38]} Qc7 {[%emt 0:00:28]} 20. Qe3 {[%emt 0:08:52]} b6 {[%emt 0:00:18]} (20... Be6 $16) 21. Na4 {[%emt 0:02:19]} (21. g4 $18) 21... Nxe4 {[%emt 0:03:17]} 22. Nxb6 {[%emt 0:07:18]} ({Only move:} 22. Qxe4 $18 {aiming for g4.} Bf5 23. Qe3 $1) 22... Nc3 $16 {[%emt 0:00:05] Inhibits g4. Threatens to win with ...Nxe2+.} 23. Nxc8 {[%emt 0:00:14]} Bxc8 {[%emt 0:00:29]} 24. Bd2 {[%emt 0:00:59]} Nxb1 {[%emt 0:01:16]} (24... Bd4 $1 $14 25. Qxc3 (25. Qxd4 $2 Nxe2+ 26. Kh1 Nxd4 $19) 25... Bxc3 26. Bxc3 Bb7) 25. Rxb1 {[%emt 0:00:01]} d5 {[%emt 0:03:28]} (25... Bb7 $16 26. Bc3 Bxc3 27. Qxc3 e6) 26. cxd5 {[%emt 0:01:39]} (26. b6 $18 Qd6 27. c5 (27. Bxa5 d4 $16)) 26... Rxd5 $14 {[%emt 0:01:37]} 27. Rc1 {[%emt 0:00:53]} (27. Bc4 {seems wilder.} Rd7 28. Rc1 Qd8 29. Bc3) 27... Qd8 {[%emt 0:00:30]} 28. Bc3 {[%emt 0:03:08]} Bxc3 {[%emt 0:04:09]} 29. Qxc3 {[%emt 0:00:02]} (29. Rxc3 {simplifies} Bb7 30. Rd3 Rxd3 31. Bxd3 e6 32. Bf1) 29... Bd7 {[%emt 0:01:39]} 30. Bc4 {[%emt 0:00:46]} Rd6 {[%emt 0:02:10]} 31. Ra1 {[%emt 0:00:30]} (31. Re1 {simplifies} Be6 32. Bxe6 fxe6 33. Re4) 31... Qb6 {[%emt 0:01:21]} 32. Qe5 {[%emt 0:00:39]} (32. Qxa5 Rd1+ 33. Kh2 Qb8+ 34. g3 Rxa1 35. Qxa1 Bxb5 $11) 32... Rf6 {[%emt 0:02:10]} 33. Ra2 {[%emt 0:00:38] Active counter play!} (33. Qxe7 Qxf2+ 34. Kh1 Bxh3 35. Qe8+ (35. gxh3 Qf3+ 36. Kh2 Qf2+ 37. Kh1 Qf3+ 38. Kh2 Qf2+ 39. Kh1 $11) 35... Kg7 36. gxh3 Qf3+ 37. Kh2 Qf2+ 38. Kh1 Qg3 $11) (33. Qe2 {simplifies} Be6 34. Rd1 Bxc4 35. bxc4 Re6 36. Qb2) 33... Rf5 {[%emt 0:00:29]} ({Black should play} 33... Rd6 $14) 34. Qe3 {[%emt 0:00:27]} (34. Qxe7 $18 {and White stays clearly on top.} Bxb5 35. g4) 34... Qxe3 $16 {[%emt 0:07:00]} 35. fxe3 {[%emt 0:00:01]} Bxb5 {[%emt 0:00:05]} 36. Rxa5 {[%emt 0:00:20]} (36. e4 $16 Rh5 37. g4 (37. Rxa5 Bc6 $14) 37... Rxh3 38. Bxb5) 36... Bxc4 {[%emt 0:00:19]} (36... Bc6 $11 {remains equal.} 37. b4 Kf8) 37. Rxf5 {[%emt 0:00:03][%cal Ob3c4]} Bxb3 {[%emt 0:00:27][%mdl 4096] Endgame KR-KB} ({Don't play} 37... gxf5 $6 38. bxc4 Kg7 39. Kf2 $11) 38. Rb5 {[%emt 0:00:27]} Bc2 {[%emt 0:00:25]} 39. Rb7 {[%emt 0:00:42]} e6 {[%emt 0:00:22]} 40. Rc7 {[%emt 0:00:00]} Be4 {[%emt 0:00:00]} 41. Rc4 {[%emt 0:12:29]} Bd5 {[%emt 0:07:13]} 42. Rb4 {[%emt 0:02:18]} f5 {[%emt 0:05:28]} 43. Ra4 {[%emt 0:08:00] Black must now prevent Ra7.} Bc6 {[%emt 0:11:58]} (43... Kg7 $16 {is a better defense.} 44. Ra7+ Kh8) 44. Ra6 $18 {[%emt 0:01:21]} Bd5 {[%emt 0:02:03] [#]} 45. Ra7 {[%emt 0:01:10]} h6 {[%emt 0:05:12]} 46. Kf2 {[%emt 0:00:36]} Kf8 {[%emt 0:00:09]} 47. Rh7 {[%emt 0:01:50]} h5 $2 {[%emt 0:02:22]} (47... Be4 48. Rxh6 Kg7) 48. Rc7 $2 {[%emt 0:04:07]} (48. h4 e5 49. Rc7) 48... Be4 $2 {[%emt 0:01:22]} (48... h4 49. g3 g5 50. gxh4 gxh4) 49. h4 {[%emt 0:00:25]} e5 {[%emt 0:02:29]} 50. Rc5 {[%emt 0:02:09]} f4 {[%emt 0:00:18]} 51. g3 {[%emt 0:01:11]} Bh1 {[%emt 0:01:43]} 52. Rxe5 {[%emt 0:00:50][%cal Bc5e5,Be5b5,Bb5b6,Bb6f6,Bf6e6][%mdl 32]} fxe3+ {[%emt 0:00:20]} 53. Kxe3 {[%emt 0:00:07]} Kf7 {[%emt 0:00:04]} 54. Kf4 {[%emt 0:00:06]} Kf6 {[%emt 0:00:14]} 55. Rb5 {[%emt 0:00:09]} Bg2 {[%emt 0:00:22]} 56. Rb6+ {[%emt 0:00:22]} Kf7 {[%emt 0:00:01]} 57. Kg5 {[%emt 0:00:14]} Be4 {[%emt 0:00:06]} 58. Rf6+ {[%emt 0:00:05]} Kg7 {[%emt 0:00:12]} 59. Re6 {[%emt 0:00:05] Weighted Error Value: White=0.27 (precise) /Black=0.36} 1-0

[Event "71st Greek Championship 2022"]
[Site "Athens"]
[Date "2022.12.04"]
[Round "2.1"]
[White "Skembris, Spyridon"]
[Black "Koutlas, Nikolaos"]
[Result "1/2-1/2"]
[ECO "A20"]
[WhiteElo "2381"]
[BlackElo "2267"]
[Annotator "TA"]
[PlyCount "90"]
[EventDate "2022.12.04"]
[EventType "tourn"]
[EventCountry "GRE"]
[SourceTitle "playchess.com"]
[Source "ChessBase"]
[SourceQuality "1"]
[TimeControl "40/5400+30:1800+30"]

{[%evp 9,90,19,25,5,36,26,35,22,39,37,38,33,52,52,50,41,86,33,40,39,34,5,5,0,0,0,0,0,10,3,0,0,0,0,0,0,23,0,0,0,0,0,0,0,0,0,0,0,0,-10,0,0,0,0,0,0,0,-8,-8,-8,-8,-8,-8,-16,0,0,0,0,0,0,0,0,7,7,7,8,8,7,8,8,8,8,63]} 1. c4 {[%emt 0:00:10]} e5 {[%emt 0:00:08]} 2. g3 {[%emt 0:00:20]} h5 {[%emt 0:00:18]} 3. h4 {[%emt 0:04:54]} Bc5 {[%emt 0:00:41]} 4. Nc3 {[%emt 0:02:25]} Nc6 {[%emt 0:00:40]} 5. Bg2 {[%emt 0:00:57]} d6 {[%emt 0:00:46]} 6. Na4 {[%emt 0:02:29] A20: English Opening: 1...e5.} Bb6 {[%emt 0:23:51] [#]} 7. Nf3 $146 {[%emt 0:05:42]} ({Predecessor:} 7. Nxb6 axb6 8. d3 Nge7 9. e4 Nd4 10. Nh3 f6 11. O-O Be6 12. Be3 Qd7 13. Kh2 {0-1 (47) Kulon,K (2347)-Wadsworth,M (2373) Daventry 2019}) 7... Bg4 {[%emt 0:02:19]} 8. d3 {[%emt 0:08:30] White is slightly better.} Ba5+ {[%emt 0:01:54]} 9. Bd2 {[%emt 0:02:48]} Bxd2+ {[%emt 0:00:17]} 10. Qxd2 {[%emt 0:00:10]} Nf6 {[%emt 0:02:01][%cal Bg8f6,Bf6h7,Bh7f8,Bf8e6][%mdl 32]} 11. Nc3 {[%emt 0:01:15]} Qd7 {[%emt 0:01:21]} 12. Ng5 {[%emt 0:01:22]} Nh7 {[%emt 0:06:06]} 13. O-O-O {[%emt 0:03:44] White is more active.} ({Better is} 13. Nxh7 $16 {aiming for Ng5.} Rxh7 14. b3) 13... Nf8 $14 {[%emt 0:07:17]} 14. f3 {[%emt 0:18:09]} Bf5 {[%emt 0:01:08]} 15. e4 {[%emt 0:11:31] Against f6} Be6 {[%emt 0:02:18]} 16. Rdf1 {[%emt 0:05:23]} f6 {[%emt 0:04:27]} 17. Nxe6 {[%emt 0:00:00]} Nxe6 {[%emt 0:00:04]} 18. Bh3 {[%emt 0:00:00]} Ncd4 {[%emt 0:01:30]} 19. Kb1 {[%emt 0:00:00]} O-O-O {[%emt 0:02:29]} 20. Nb5 {[%emt 0:01:05]} Nxb5 {[%emt 0:00:54]} 21. cxb5 {[%emt 0:00:02]} Kb8 {[%emt 0:01:24][%cal Oh8e8]} 22. Rc1 {[%emt 0:01:50]} Qe8 {[%emt 0:02:22]} 23. Bxe6 {[%emt 0:02:23]} (23. Qc3 {is interesting.} Rd7 24. Qa5 Nd4 25. Bxd7 Qxd7 26. f4) 23... Qxe6 {[%emt 0:00:05] The position is equal.} 24. Qa5 {[%emt 0:00:49]} Rd7 {[%emt 0:09:21]} 25. Rc3 {[%emt 0:07:47]} d5 {[%emt 0:01:07]} 26. Rhc1 {[%emt 0:01:11][%cal Rc3c7]} Qb6 {[%emt 0:01:26]} 27. Qxb6 {[%emt 0:00:48]} axb6 $11 {[%emt 0:00:25][%mdl 4096] Endgame KRR-KRR} 28. Kc2 {[%emt 0:05:06]} dxe4 {[%emt 0:00:56]} 29. fxe4 {[%emt 0:00:22]} Rhd8 {[%emt 0:01:11]} 30. Rf1 {[%emt 0:02:13]} Rd4 {[%emt 0:02:16]} 31. a3 {[%emt 0:00:49]} Kc8 {[%emt 0:00:33]} 32. Rf5 {[%emt 0:01:30]} Rh8 {[%emt 0:00:11]} 33. Kd2 {[%emt 0:01:13]} Kd7 {[%emt 0:00:16]} 34. Ke3 {[%emt 0:01:13]} c5 {[%emt 0:01:28]} 35. bxc6+ {[%emt 0:00:31]} bxc6 {[%emt 0:00:02]} 36. Rf1 {[%emt 0:02:25]} c5 {[%emt 0:01:34]} 37. Rfc1 {[%emt 0:00:19]} Ke6 {[%emt 0:04:35]} 38. b4 {[%emt 0:01:07]} cxb4 {[%emt 0:03:08]} 39. axb4 {[%emt 0:00:12]} Rxb4 {[%emt 0:00:57]} 40. Rc7 {[%emt 0:00:00][%cal Rc1c6] [#]} Rd8 {[%emt 0:00:00]} 41. Rxg7 {[%emt 0:01:44]} Rb3 {[%emt 0:00:34]} 42. Rc6+ {[%emt 0:00:34]} Rd6 {[%emt 0:00:01]} 43. Rxd6+ {[%emt 0:00:22]} Kxd6 {[%emt 0:00:01]} 44. Rh7 {[%emt 0:00:42]} Rb2 {[%emt 0:01:08]} 45. Rxh5 {[%emt 0:00:53]} Rg2 {[%emt 0:00:05] Weighted Error Value: White=0.04 (flawless) /Black=0.05 (flawless)} 1/2-1/2

[Event "71st Greek Championship 2022"]
[Site "Athens"]
[Date "2022.12.04"]
[Round "2.2"]
[White "Alexiadis, Hristos"]
[Black "Alexakis, Dimitris"]
[Result "1-0"]
[ECO "A77"]
[WhiteElo "2342"]
[BlackElo "2486"]
[Annotator "TA"]
[PlyCount "81"]
[EventDate "2022.12.04"]
[EventType "tourn"]
[EventCountry "GRE"]
[SourceTitle "playchess.com"]
[Source "ChessBase"]
[SourceQuality "1"]
[TimeControl "40/5400+30:1800+30"]

{[%evp 23,81,54,44,19,85,70,59,75,64,75,93,40,104,104,105,99,106,60,64,66,79,47,97,70,51,78,55,-67,81,79,85,83,72,81,87,71,243,194,397,396,400,400,395,408,398,396,408,391,691,686,660,648,29979,29980,29978,29978,29994,29995,29997,29994]} 1. d4 {[%emt 0:00:02]} Nf6 {[%emt 0:08:05]} 2. c4 {[%emt 0:00:16]} c5 {[%emt 0:00:20]} 3. d5 {[%emt 0:00:35]} e6 {[%emt 0:00:09]} 4. Nc3 {[%emt 0:01:27]} exd5 {[%emt 0:00:09]} 5. cxd5 {[%emt 0:00:06]} d6 {[%emt 0:00:05]} 6. Nf3 {[%emt 0:01:36]} a6 {[%emt 0:00:23]} 7. a4 {[%emt 0:00:33]} g6 {[%emt 0:00:10]} 8. Nd2 {[%emt 0:00:20]} Nbd7 {[%emt 0:00:20]} 9. e4 {[%emt 0:00:20]} Bg7 {[%emt 0:00:13]} 10. Be2 {[%emt 0:00:11]} O-O {[%emt 0:00:06]} 11. O-O {[%emt 0:00:05]} Re8 {[%emt 0:02:19]} 12. h3 {[%emt 0:01:56]} Rb8 {[%emt 0:08:11]} 13. Re1 {[%emt 0:01:19] A77: Modern Benoni: Classical: 9...Re8 10 Nd2: 10...a6 and 10...Nbd7.} h5 {[%emt 0:09:04]} (13... Ne5 $11 {keeps the balance.}) 14. a5 {[%emt 0:16:26]} b5 {[%emt 0:17:20]} 15. axb6 {[%emt 0:00:53] White is slightly better.} Nxb6 {[%emt 0:00:06]} 16. Ra3 {[%emt 0:00:17]} (16. Bxa6 Ra8 17. Bxc8 (17. Qe2 Nbxd5 18. Ra3 Bxa6 $17) 17... Rxa1 $15) 16... Nfd7 {[%emt 0:07:47] [#]} 17. Qc2 $146 {[%emt 0:06:11]} (17. Bxa6 Bxa6 18. Rxa6 c4 $11) (17. Bf1 $16) ({Predecessor:} 17. Bf1 h4 18. Nb3 Ne5 19. Na5 g5 20. Nc6 Nxc6 21. dxc6 Bd4 22. Be3 Qf6 23. Bxa6 {1-0 (42) Matlakov,M (2673)-Kopylov,A (2425) Khanty-Mansiysk 2012}) 17... Ne5 {[%emt 0:04:43]} (17... Qe7 $14) 18. f4 $1 $16 {[%emt 0:28:43]} (18. Bxa6 Bxa6 19. Rxa6 c4 $11) 18... Ned7 {[%emt 0:26:23]} 19. Nf3 {[%emt 0:04:05]} (19. Bxa6 $6 Bxa6 20. Rxa6 c4 $14) 19... Qc7 {[%emt 0:07:07]} 20. b3 {[%emt 0:05:04]} (20. Be3 $16) 20... c4 $1 $14 {[%emt 0:02:21]} 21. b4 {[%emt 0:00:26]} Nf6 {[%emt 0:01:57]} 22. Bf1 {[%emt 0:01:08]} Bb7 {[%emt 0:03:00]} (22... Nbd7 $1 $14) 23. Be3 {[%emt 0:02:21] White is more active.} (23. Kh2 {simplifies} Rbc8 24. Bd2 Re7 25. Be3) 23... Nxe4 $1 {[%emt 0:01:05]} 24. Nxe4 {[%emt 0:00:06] Hoping for Bf2.} Nxd5 {[%emt 0:00:14]} 25. Neg5 {[%emt 0:02:06]} (25. Bxc4 $14 Rec8 26. Qd2 $1 Qxc4 27. Nxd6 Qxb4 28. Qxb4 Nxb4 29. Ba7) 25... Nxe3 {[%emt 0:00:42]} (25... c3 $1 $15 26. Ba7 Rxe1 27. Nxe1 Nxb4) 26. Raxe3 {[%emt 0:00:05]} Rxe3 {[%emt 0:00:22]} 27. Rxe3 {[%emt 0:00:05] Black must now prevent f5.} Bxf3 {[%emt 0:00:44]} 28. Rxf3 {[%emt 0:00:53]} ({Much weaker is} 28. Nxf3 d5 $11) 28... d5 {[%emt 0:00:27]} 29. f5 {[%emt 0:00:24]} Qe7 $2 {[%emt 0:00:27] [#] This costs Black the game.} (29... h4 $16 {was necessary.}) 30. h4 $1 $18 {[%emt 0:00:07]} Qf6 {[%emt 0:00:39]} (30... Qxb4 {was worth a try.} 31. fxg6 Qb6+ 32. Kh1 fxg6) 31. fxg6 {[%emt 0:01:31]} Qxg6 {[%emt 0:00:01]} 32. Qd1 {[%emt 0:00:20]} Qb6+ {[%emt 0:00:42]} 33. Kh1 {[%emt 0:01:12]} Qd4 {[%emt 0:00:02]} 34. Qe1 {[%emt 0:01:16]} Bf6 {[%emt 0:01:12]} 35. Rf5 {[%emt 0:03:38]} Bxg5 $2 {[%emt 0:00:32]} (35... Kg7 36. Be2 Qe3) 36. Rxg5+ {[%emt 0:00:05]} Kf8 {[%emt 0:00:03]} 37. Qg3 {[%emt 0:00:11] Against Qf4. White threatens Qd6+ and mate.} Ke7 {[%emt 0:00:55] Inhibits Qd6+.} 38. Qc7+ {[%emt 0:01:00] White mates.} (38. Qxb8 Qxh4+ 39. Kg1 Qd4+ 40. Kh2 Qh4+ 41. Kg1 Qd4+ 42. Kh2 Qh4+ 43. Kg1 $11) 38... Ke6 {[%emt 0:00:01]} 39. g3 {[%emt 0:03:30]} ({And not} 39. Qxb8 Qxh4+ 40. Kg1 Qd4+ 41. Kh2 Qh4+ 42. Kg1 Qd4+ 43. Kh2 Qh4+ 44. Kg1 $11) 39... Re8 {[%emt 0:00:57]} 40. Bh3+ {[%emt 0:00:00]} Kf6 {[%emt 0:00:00]} 41. Rf5+ {[%emt 0:00:39] Weighted Error Value: White=0.12 (very precise) /Black=0.69} 1-0

[Event "71st Greek Championship 2022"]
[Site "Athens"]
[Date "2022.12.04"]
[Round "2.3"]
[White "Markidis, Konstantinos"]
[Black "Marinakis, Hristos"]
[Result "1-0"]
[ECO "B51"]
[WhiteElo "2290"]
[BlackElo "2118"]
[Annotator "TA"]
[PlyCount "85"]
[EventDate "2022.12.04"]
[EventType "tourn"]
[EventCountry "GRE"]
[SourceTitle "playchess.com"]
[Source "ChessBase"]
[SourceQuality "1"]
[TimeControl "40/5400+30:1800+30"]

{[%evp 9,85,14,13,15,20,17,24,0,14,0,9,5,6,0,37,27,43,26,55,47,54,42,57,52,49,37,34,32,31,25,49,47,49,44,49,49,82,52,82,93,83,84,98,101,119,112,143,91,91,88,78,68,79,63,58,77,143,138,242,164,376,353,1112,1104,1054,933,1465,1455,2713,2377,1551,1101,1962,1853,1808,685,623,614]} 1. e4 {[%emt 0:00:07]} c5 {[%emt 0:00:06]} 2. Nf3 {[%emt 0:00:06]} d6 {[%emt 0:00:03]} 3. Bb5+ {[%emt 0:00:23]} Nd7 {[%emt 0:00:06]} 4. c3 {[%emt 0:00:45]} Ngf6 {[%emt 0:00:22]} 5. Bd3 {[%emt 0:00:12]} g6 {[%emt 0:00:23]} 6. Bc2 {[%emt 0:00:07] B51: Sicilian: Moscow Variation (3 Bb5+) without 3...Bd7.} Bg7 {[%emt 0:00:09]} 7. d4 {[%emt 0:00:47]} O-O {[%emt 0:00:29]} 8. O-O {[%emt 0:00:07] White has an edge.} b5 {[%emt 0:01:35]} 9. Re1 {[%emt 0:07:22]} Bb7 {[%emt 0:05:57]} 10. a4 {[%emt 0:02:49]} a6 {[%emt 0:08:09]} 11. h3 {[%emt 0:08:10]} e5 {[%emt 0:13:56]} 12. d5 {[%emt 0:01:02]} c4 {[%emt 0:06:43] [#]} 13. Be3 $146 {[%emt 0:03:37]} ({Predecessor:} 13. Nbd2 Nc5 14. a5 Nh5 15. b3 cxb3 16. Nxb3 Rc8 17. Nxc5 Rxc5 18. Ra3 h6 19. g3 {1-0 (39) Tregubov,P (2423)-Golsta,M (1938) Riga 2021}) 13... Ne8 {[%emt 0:04:00]} 14. Na3 {[%emt 0:05:34]} Nc7 {[%emt 0:03:32]} 15. b3 {[%emt 0:07:00]} cxb3 {[%emt 0:06:10]} 16. Bxb3 {[%emt 0:00:07]} f5 {[%emt 0:00:32]} 17. c4 {[%emt 0:17:53][%cal Rc4b5]} b4 {[%emt 0:09:57] [#] And now ...f4 would win.} 18. c5 $1 {[%emt 0:05:59] Nc4 is the strong threat.} bxa3 {[%emt 0:19:12]} 19. c6 {[%emt 0:00:47]} Bc8 {[%emt 0:00:29] White must now prevent ...Nf6.} 20. cxd7 {[%emt 0:00:32]} Bxd7 {[%emt 0:00:20]} 21. Rxa3 {[%emt 0:06:42]} Rb8 {[%emt 0:04:08]} 22. Bc2 {[%emt 0:14:26]} ({Don't play} 22. Bg5 Bf6 23. Bh6 Bg7 $11) 22... fxe4 {[%emt 0:04:09]} 23. Ng5 {[%emt 0:01:07]} Rb4 {[%emt 0:01:28]} 24. Nxe4 {[%emt 0:01:35]} (24. Bd2 {feels hotter.} Rb2 25. Bc1 Rb8 26. Bxe4 Qf6 27. Qc2) 24... Bf5 {[%emt 0:01:51]} 25. f3 {[%emt 0:01:25][%cal Bf2f3,Bf3e4][%mdl 32]} Bf6 {[%emt 0:04:25]} 26. Rc3 {[%emt 0:01:27] Threatens to win with Nxf6+.} Bxe4 {[%emt 0:00:55]} 27. fxe4 {[%emt 0:01:20]} Ne8 {[%emt 0:00:58]} 28. Rf1 {[%emt 0:03:22]} (28. Qg4 $142) 28... Bg5 $16 {[%emt 0:00:11]} 29. Rxf8+ {[%emt 0:00:09]} Kxf8 {[%emt 0:00:04]} 30. Qf3+ {[%emt 0:00:31]} Kg7 {[%emt 0:00:33] [#]} 31. Bf2 $1 {[%emt 0:01:00]} Rb2 {[%emt 0:04:01]} 32. Rc6 $36 {[%emt 0:00:54][%mdl 2048] Hoping for Qc3. White is on the roll.} Bd2 {[%emt 0:00:56] Inhibits Qc3.} (32... Qb8 $142 33. Bd3 a5) 33. Qd3 {[%emt 0:01:34] White is more active.} Qg5 {[%emt 0:00:37]} (33... Qa5 $16 {might work better.} 34. Kf1 (34. Rxa6 Qc3 $16) 34... Kf7) 34. Rxa6 {[%emt 0:03:59]} Ra2 $2 {[%emt 0:00:19]} ({Weaker is} 34... Bb4 35. Rc6 $16) (34... Rb7 35. Bd1 Bb4) 35. Ra7+ $18 {[%emt 0:00:34]} Kh6 $2 {[%emt 0:00:37]} (35... Kf8 36. g3 (36. Rxh7 Ra1+ 37. Bb1 Nf6 $18) 36... Bc1) 36. h4 {[%emt 0:00:49] White is clearly winning.} Ra1+ {[%emt 0:00:21]} 37. Bb1 {[%emt 0:00:35]} Qf4 {[%emt 0:00:18]} 38. g3 {[%emt 0:00:11]} Rxb1+ {[%emt 0:00:31]} 39. Qxb1 {[%emt 0:00:08]} Qf3 {[%emt 0:00:06]} 40. Qc2 {[%emt 0:00:00]} Qe2 {[%emt 0:00:00]} 41. Rf7 {[%emt 0:04:18]} Ng7 {[%emt 0:03:53]} 42. Rxg7 {[%emt 0:01:10]} Kxg7 {[%emt 0:00:12]} 43. a5 {[%emt 0:00:06] Weighted Error Value: White=0.28 (precise) /Black=0.24 (precise)} 1-0

[Event "71st Greek Championship 2022"]
[Site "Athens"]
[Date "2022.12.04"]
[Round "2.4"]
[White "Moutousis, Konstantinos"]
[Black "Trimitzios, Petros"]
[Result "1/2-1/2"]
[ECO "C30"]
[WhiteElo "2392"]
[BlackElo "2358"]
[Annotator "TA"]
[PlyCount "91"]
[EventDate "2022.12.04"]
[EventType "tourn"]
[EventCountry "GRE"]
[SourceTitle "playchess.com"]
[Source "ChessBase"]
[SourceQuality "1"]
[TimeControl "40/5400+30:1800+30"]

{[%evp 13,91,-4,26,27,24,7,14,22,54,43,54,10,3,-8,-10,-18,-17,-20,8,6,6,9,10,10,2,3,37,13,13,15,15,29,34,33,64,64,65,41,36,4,10,19,61,29,38,16,18,23,24,24,33,13,28,24,36,33,46,46,55,32,52,32,32,14,32,0,32,27,52,27,27,27,27,27,27,24,40,40,40,0]} 1. e4 {[%emt 0:00:57]} e5 {[%emt 0:00:39]} 2. Bc4 {[%emt 0:00:04]} Nc6 {[%emt 0:00:50]} 3. Nc3 {[%emt 0:00:05]} Nf6 {[%emt 0:02:38]} 4. d3 {[%emt 0:00:23]} Bc5 {[%emt 0:04:59]} 5. f4 {[%emt 0:00:28]} d6 {[%emt 0:05:14]} 6. Nf3 {[%emt 0:00:12]} a6 $1 {[%emt 0:04:03][%mdl 4] is currently scoring better than 6...Bg4.} 7. f5 {[%emt 0:01:52]} h6 {[%emt 0:03:00]} 8. a3 {[%emt 0:00:25] C30: King's Gambit Declined.} Qe7 {[%emt 0:04:47]} 9. Nd5 {[%emt 0:18:02] Against g6} Nxd5 {[%emt 0:01:17]} 10. Bxd5 {[%emt 0:00:03] The position is equal.} Bd7 {[%emt 0:10:27]} 11. c3 {[%emt 0:00:20] [#]} Bb6 $146 {[%emt 0:04:39]} ({Predecessor:} 11... O-O-O 12. Qe2 g6 13. b4 Bb6 14. fxg6 fxg6 15. Be3 Bxe3 16. Qxe3 Nb8 17. O-O Rdf8 {1-0 (35) Emms,J (2500)-Olesen,M (2340) Hillerod 1995}) 12. Rf1 {[%emt 0:04:19]} O-O-O {[%emt 0:06:51]} 13. g3 {[%emt 0:01:58]} Qe8 {[%emt 0:02:58]} 14. Qe2 {[%emt 0:01:32]} Ne7 {[%emt 0:01:48] [#] aiming for ...Nxd5.} 15. Ba2 {[%emt 0:00:37]} Bc6 {[%emt 0:05:23]} 16. Be3 {[%emt 0:00:51]} Bxe3 {[%emt 0:01:08]} 17. Qxe3 {[%emt 0:00:06]} Kb8 {[%emt 0:00:08]} 18. O-O-O {[%emt 0:04:05]} f6 {[%emt 0:00:29]} 19. d4 {[%emt 0:07:18]} Qh5 {[%emt 0:07:21]} 20. d5 {[%emt 0:10:55]} (20. g4 $5 {[%cal Rg4h5]} Qe8 21. Be6 $11) 20... Bd7 {[%emt 0:00:53]} 21. Bc4 {[%emt 0:09:29]} Qf7 {[%emt 0:09:27]} 22. Bd3 {[%emt 0:03:57]} c6 {[%emt 0:05:04]} 23. c4 {[%emt 0:02:05]} c5 {[%emt 0:02:31]} 24. b4 {[%emt 0:11:22]} b6 {[%emt 0:01:14]} 25. bxc5 {[%emt 0:02:13]} bxc5 {[%emt 0:04:40]} 26. Qe1 {[%emt 0:01:51] [#] Hoping for Qa5.} Ka7 $1 {[%emt 0:05:29]} 27. Qa5 {[%emt 0:00:39]} Rc8 {[%emt 0:00:02] Inhibits Qc7+.} (27... Rb8 {is interesting.} 28. Kd2 Rb6 29. Rb1 Rhb8) 28. Nd2 {[%emt 0:09:16][%cal Bf3d2,Bd2b1,Bb1c3][%mdl 32] White is more active.} Qe8 {[%emt 0:00:20]} 29. Nb1 {[%emt 0:00:18]} Qd8 {[%emt 0:01:08]} 30. Qxd8 {[%emt 0:00:54]} Rcxd8 {[%emt 0:00:02]} 31. Nc3 {[%emt 0:00:19]} Rb8 {[%emt 0:01:22]} 32. Bc2 {[%emt 0:01:34]} Rb7 {[%emt 0:01:23]} 33. Kd2 {[%emt 0:01:15]} Rhb8 {[%emt 0:00:30]} 34. Rb1 {[%emt 0:01:01]} Nc8 {[%emt 0:00:19]} 35. Rxb7+ {[%emt 0:00:15]} Rxb7 {[%emt 0:00:45]} 36. Rb1 {[%emt 0:01:02]} Nb6 {[%emt 0:00:34]} 37. Bd3 {[%emt 0:02:17]} Be8 {[%emt 0:00:20]} 38. Rg1 {[%emt 0:01:44]} Ba4 {[%emt 0:01:40]} 39. Rb1 {[%emt 0:00:16][%cal Ob1b6] Inhibits Bb3. Strongly threatening Rxb6!} Bd7 {[%emt 0:00:16]} 40. g4 {[%emt 0:00:00]} Nc8 {[%emt 0:00:00]} 41. Rxb7+ {[%emt 0:02:01]} Kxb7 {[%emt 0:00:45]} 42. h4 {[%emt 0:00:53]} Kb6 {[%emt 0:00:04]} 43. Bc2 {[%emt 0:12:25]} Ka5 {[%emt 0:00:12]} 44. Bb3 {[%emt 0:02:18]} Nb6 {[%emt 0:00:13]} 45. Kc2 {[%emt 0:00:38]} Be8 {[%emt 0:00:27]} 46. h5 {[%emt 0:04:55] Weighted Error Value: White=0.10 (very precise) /Black=0.10 (very precise)} 1/2-1/2